Cogmind - Beta 15 @@@ ROGUE MODE // 2025.05.22 @ 19:48:47 Player: SUBSUB Result: Destroyed by AS-UTQ(R) with Subdweller Laser Performance ------------- Evolutions (0) 0 Regions Visited (2) 400 Robots Destroyed (7) 35 Value Destroyed (143) 143 Prototype IDs (0) 0 Alien Tech Used (0) 0 Bonus (0) 0 TOTAL SCORE: 578 Bonus ------- None Cogmind --------- Core Integrity 0/250 Matter 300/300 Energy 100/100 System Corruption 1% Temperature Cool (6) Movement Rolling (130) Ox2 Location -10/Subcaves Parts ------- > --- POWER (1) -------- (None) > --- PROPULSION (2) --- Compact Wheel Compact Wheel > --- UTILITY (2) ------ Huge Storage Unit Seismic Detector > --- WEAPON (2) ------- (None) > --- INVENTORY (25) --- Ion Engine Improved Terrain Scanner Propulsion Shielding Propulsion Shielding Datajack Peak State ------------ > --- POWER ------------ Ion Engine > --- PROPULSION ------- Aluminum Leg Aluminum Leg > --- UTILITY ---------- High-capacity Storage Unit Seismic Detector > --- WEAPON ----------- Medium Laser Assault Rifle > --- INVENTORY -------- Ion Engine Ion Engine Aluminum Leg Wheel Compact Wheel Improved Terrain Scanner Propulsion Shielding Datajack [Rating: 8] Favorites ----------- Power Ion Engine Engine Ion Engine Propulsion Aluminum Leg Leg Aluminum Leg Wheel Compact Wheel Utility Seismic Detector Device Seismic Detector Storage Small Storage Unit Weapon Medium Laser Energy Gun Medium Laser Ballistic Gun Assault Rifle Build | -11 -10 -10 ------- Run | Yrd Mat Sub Slots Evolved . | . . . Power . | . . . Propulsion . | . . . Utility . | . . . Weapon . | . . . Parts Attached 14 | 7 5 2 Power 2 | 1 1 . Engine 2 | 1 1 . Core . | . . . Reactor . | . . . Propulsion 6 | 2 2 2 Treads . | . . . Leg 2 | 2 . . Wheel 4 | . 2 2 Hover . | . . . Flight . | . . . Utility 4 | 2 2 . Device 1 | 1 . . Storage 3 | 1 2 . Processor . | . . . Hackware . | . . . Protection . | . . . Artifact . | . . . Weapon 2 | 2 . . Energy Gun 1 | 1 . . Energy Cannon . | . . . Ballistic Gun 1 | 1 . . Ballistic Cannon . | . . . Launcher . | . . . Special Weapon . | . . . Impact Weapon . | . . . Slashing Weapon . | . . . Piercing Weapon . | . . . Special Melee Weapon . | . . . Unidentified Prototypes . | . . . Parts Lost 5 | . . 5 Power 1 | . . 1 Propulsion 2 | . . 2 Utility . | . . . Weapon 2 | . . 2 Highest Loss Streak 5 | . . 5 To Critical Strikes . | . . . Average Backups 5 | 2 5 6 Power . | . 1 1 Propulsion 2 | 1 2 1 Utility 1 | . 1 3 Weapon . | . . . Tool/Special . | . . . Unused Backups 6 | . 1 5 Power 1 | . . 1 Propulsion 1 | . 1 . Utility 3 | . . 3 Weapon . | . . . Tool/Special 1 | . . 1 Average Slot Usage (%) 97 | . 100 89 Engine 13 | . 14 11 Leg 17 | . 22 . Wheel 9 | . 5 25 Device 14 | . 14 14 Storage 14 | . 14 14 Energy Gun 13 | . 14 11 Ballistic Gun 13 | . 14 10 Peak Build Rating 8 | 7 8 7 Average Rating 6 | 5 7 6 On Entrance 4 | . 7 7 Naked Turns . | . . . Heaviest Build 90 | 15 90 90 Greatest Support 32 | 20 26 32 Greatest Overweight (x) 8 | 2 3 8 Average Overweight (x) 1 | . 1 2 Largest Inventory Capacity 25 | 8 25 25 Average Capacity 16 | 7 16 25 Most Carried 9 | 4 9 7 Average Carried 5 | 2 5 6 Final Capacity 25 | 8 25 25 Final Carried 7 | 4 7 5 Class Distribution -------------------- 100% | Mutant Dominant Class ---------------- Mutant | -10/Materials Mutant | -10/Subcaves Resources | -11 -10 -10 ----------- Run | Yrd Mat Sub Matter Collected 385 | 288 92 5 Remotely . | . . . Salvage Created 341 | 104 177 60 Parts 20 | 5 10 5 Haulers Intercepted . | . . . Recyclers Shooed 1 | 1 . . Parts Field Recycled . | . . . Retrieved Matter . | . . . Parts Self-Destructed . | . . . Prevented . | . . . Kills | -11 -10 -10 ------- Run | Yrd Mat Sub Combat Hostiles Destroyed 3 | . 2 1 Melee 1 | . . 1 Guns 2 | . 2 . Classes Destroyed 5 | 2 2 1 Tunneler 1 | 1 . . Recycler 2 | 1 1 . Operator 1 | . 1 . Grunt 2 | . 2 . Subdweller 1 | . . 1 Best Kill Streak 2 | 2 1 1 Combat Bots Only 1 | . 1 1 Max Kills in Single Turn 1 | 1 1 1 Gunslinging . | . . . Exploded . | . . . Melee 1 | . . 1 Uniques/NPCs Destroyed . | . . . Combat | -11 -10 -10 -------- Run | Yrd Mat Sub Hostile Shots Fired 55 | . 20 35 Missed 14 | . 6 8 Hits 41 | . 14 27 Projectile 41 | . 14 27 Damage Taken 737 | . 151 586 Core 255 | . 22 233 Absorbed by Shields . | . . . Core Remaining (%) 100 | 100 . . Volleys Fired 34 | 6 16 12 Largest 2 | 2 2 2 Hottest 70 | 70 70 70 Shots Fired 61 | 12 32 17 Gun 61 | 12 32 17 Cannon . | . . . Launcher . | . . . Special . | . . . Kinetic 27 | 6 16 5 Thermal 34 | 6 16 12 Explosive . | . . . Electromagnetic . | . . . Robot Hit Streak 14 | 6 14 5 Robot Miss Streak 3 | 1 3 1 Penetration Max . | . . . Secondary Targets . | . . . Shots Hit Robots 46 | 9 24 13 Core Hits 16 | 3 8 5 Critical Kills . | . . . Critical Parts Destroyed 1 | 1 . . Critical Strikes 2 | 1 . 1 Burn 1 | . . 1 Destroy 1 | 1 . . Melee Attacks . | . . . Impact . | . . . Slashing . | . . . Piercing . | . . . Sneak Attacks . | . . . Combat Hostiles . | . . . Follow-up Attacks . | . . . Damage Inflicted 599 | 112 291 196 Guns 559 | 112 291 156 Cannons . | . . . Explosions . | . . . Melee . | . . . Ramming 40 | . . 40 Kinetic 258 | 48 167 43 Thermal 301 | 64 124 113 Explosive . | . . . Electromagnetic . | . . . Impact . | . . . Slashing . | . . . Piercing . | . . . Highest Corruption 1 | . . 1 Average Corruption 1 | . . 1 Corruption Purged . | . . . Corruption Blocked . | . . . Overload Shots . | . . . Overflow Damage . | . . . Projectiles . | . . . Explosions . | . . . Melee . | . . . Knockbacks . | . . . Impact . | . . . Kinetic . | . . . Secondary . | . . . Self-Inflicted Damage 18 | . . 18 Shots . | . . . Rammed 6 | . . 6 Targets Rammed 6 | . . 6 Kicked . | . . . Crushed . | . . . Highest Temperature 105 | 36 105 . Average Temperature 29 | 16 33 . Received Heat Transfer 168 | . 84 84 Siege Activations . | . . . Martial Activations . | . . . Shielding Activations . | . . . Robots Disrupted . | . . . Combat Hostiles . | . . . Robots Corrupted . | . . . Combat Hostiles . | . . . Parts Fried . | . . . Impact Corruptions . | . . . Robots Melted . | . . . Combat Hostiles . | . . . Parts Melted . | . . . Heat Transferred 962 | 185 370 407 Parts Sabotaged . | . . . Parts Stolen . | . . . Parts Stripped . | . . . Power Chain Reactions . | . . . Alert | -11 -10 -10 ------- Run | Yrd Mat Sub Maximum Alert Level . | . . . Low Security (%) 100 | 100 100 . Level 1 . | . . . Level 2 . | . . . Level 3 . | . . . Level 4 . | . . . Level 5 . | . . . High Security . | . . . Max Security . | . . . Peak Influence 30 | 5 30 . Initial . | . . . Average 2 | . 3 . Influence Increases 70 | 10 60 . Destroy 0b10 Robot/C 40 | . 40 . Destroy 0b10 Robot/NC 20 | 10 10 . Destroy Leader 10 | . 10 . Influence Decreases 70 | 10 60 . Time Decay 70 | 10 60 . Squads Dispatched 1 | . 1 . Investigation 1 | . 1 . Extermination . | . . . Reinforcement . | . . . Assault . | . . . Garrison . | . . . Intercept . | . . . Searches Triggered . | . . . Construction Impeded . | . . . Haulers Reinforced . | . . . Active Scanning Responses . | . . . Cargo Convoy Interrupts . | . . . Stealth | -11 -10 -10 --------- Run | Yrd Mat Sub Distress Signals 1 | . 1 . Communications Jammed . | . . . Distress Signals . | . . . Times Spotted 11 | . 9 2 Peak Tracking Total 3 | . 3 2 Tactical Retreats . | . . . Traps | -11 -10 -10 ------- Run | Yrd Mat Sub Traps Triggered . | . . . Indirectly . | . . . Trap Hack Attempts . | . . . Triggered . | . . . Disarmed 1 | . 1 . Reprogrammed . | . . . Reused . | . . . Traps Extracted . | . . . Installed . | . . . Triggered . | . . . Machines | -11 -10 -10 ---------- Run | Yrd Mat Sub Machines Disabled . | . . . Max in Single Turn . | . . . Machines Repaired . | . . . Machines Dismantled . | . . . Machines Sabotaged . | . . . Overloaded Fab Kills . | . . . Hacking | -11 -10 -10 --------- Run | Yrd Mat Sub Machines Accessed 1 | . 1 . Terminals 1 | . 1 . Fabricators . | . . . Repair Stations . | . . . Recycling Units . | . . . Scanalyzers . | . . . Garrison Access . | . . . Total Hacks 2 | . 2 . Successful 1 | . 1 . Failed 1 | . 1 . Catastrophic 1 | . 1 . Database Lockouts . | . . . Manual 2 | . 2 . Terminals 2 | . 2 . Fabricators . | . . . Repair Stations . | . . . Recycling Units . | . . . Scanalyzers . | . . . Garrison Access . | . . . Terminal Hacks 1 | . 1 . Disarm Traps 1 | . 1 . Fabricator Hacks . | . . . Repair Station Hacks . | . . . Recycling Unit Hacks . | . . . Scanalyzer . | . . . Garrison Access Hacks . | . . . Unauthorized Hacks . | . . . Terminals . | . . . Fabricators . | . . . Repair Stations . | . . . Recycling Units . | . . . Scanalyzers . | . . . Garrison Access . | . . . Data Cores Recovered 1 | . 1 . Used . | . . . Hacking Detections 1 | . 1 . Full Trace Events 1 | . 1 . Feedback Events . | . . . Feedback Blocked . | . . . Robot Schematics Acquired . | . . . Robots Built . | . . . Authchips . | . . . Time . | . . . Total Robot Build Rating . | . . . Part Schematics Acquired . | . . . Parts Built . | . . . Authchips . | . . . Time . | . . . Total Part Build Rating . | . . . Parts Repaired . | . . . Time . | . . . Parts Recycled . | . . . Recycled Matter . | . . . Retrieved Matter . | . . . Retrieved Components . | . . . Parts Scanalyzed . | . . . Part Schematics Acquired . | . . . Parts Damaged . | . . . Bothacking | -11 -10 -10 ------------ Run | Yrd Mat Sub Used RIF Installer . | . . . Robots Hacked . | . . . Non-combat . | . . . Combat . | . . . Robot Hacks Applied . | . . . Relay Couplers Released . | . . . Fabnet Peak Effective % . | . . . Robots Rewired . | . . . Allies Hacked . | . . . Hacks Repelled . | . . . Allies | -11 -10 -10 -------- Run | Yrd Mat Sub Total Allies . | . . . Largest Group . | . . . Highest-Rated Group . | . . . Highest-Rated Ally . | . . . Total Orders . | . . . Ally Attacks . | . . . Total Damage . | . . . Kills . | . . . Allies Corrupted . | . . . Allies Melted . | . . . Intel | -11 -10 -10 ------- Run | Yrd Mat Sub Active Infowar (turns) 633 | 66 466 101 Seismic 633 | 66 466 101 Robot Analysis Total . | . . . Derelict Logs Recovered . | . . . Drone Launches . | . . . Drone Recoveries . | . . . Exploration | -11 -10 -10 ------------- Run | Yrd Mat Sub Turns Passed 727 | 146 466 115 Spaces Moved 365 | 91 226 48 Core 14 | 14 . . Treads . | . . . Legs 257 | 77 180 . Wheels 94 | . 46 48 Hover . | . . . Flight . | . . . Fastest Speed 50 | 50 120 130 Average Speed 148 | 120 163 135 Slowest Speed 260 | 150 260 200 Overloaded Moves . | . . . Propulsion Burnouts . | . . . Robots Hopped . | . . . Potential Cave-ins . | . . . Cave-ins Triggered . | . . . Exploration Rate (%) 11 | 6 24 5 Regions Visited 2 Branch Regions 1 Pre-discovered Areas . | . . . Known Exits Taken . | . . . Unknown Exits Taken 2 | 1 1 . Scrap Searched . | . . . Spaces Dug . | . . . Terrain Destroyed . | . . . Melee . | . . . Projectile . | . . . AOE . | . . . Terrain Rammed . | . . . Walls Destroyed . | . . . Machines Disabled . | . . . Actions | -11 -10 -10 --------- Run | Yrd Mat Sub Total 482 | 112 291 79 Wait 49 | 5 33 11 Move 363 | 90 225 48 Hop . | . . . Pick Up 10 | 4 6 . Fast Attach 7 | 7 . . Attach 2 | . . 2 Detach . | . . . Swap 5 | . 5 . Drop 6 | . 6 . Fire 34 | 6 16 12 Melee . | . . . Ram 6 | . . 6 Kick . | . . . Crush . | . . . Escape Stasis . | . . . Rewire . | . . . Trap . | . . . Miscellaneous . | . . . Route ------- -11/Scrapyard -10/Materials -10/Subcaves History --------- Turn | Location | Event 14 | -11/Scrapyard | Discovered new exit (range 15) 147 | -11/Scrapyard | Entered Materials 300 | -10/Materials | Build established: Mutant 590 | -10/Materials | Discovered new exit (range 6) 613 | -10/Materials | Entered Subcaves 709 | -10/Subcaves | Core integrity fell below 50% 725 | -10/Subcaves | Core integrity fell below 20% 728 | -10/Subcaves | Destroyed by AS-UTQ(R) with Subdweller Laser Last Messages --------------- AMBIENT_HEAT=-10 GOAL=ESCAPE 00688_ Com. Wheel destroyed. 00693_ Assault Rifle destroyed. 00702_ Ion Engine destroyed. 00703_ YB-OM8(R) suffers critical hit (Burn). 00706_ Med. Laser destroyed. 00710_ Wheel destroyed. 00713_ Slammed into YB-OM8(R). 00713_ Destabilizing: System corrupted (+1). 00714_ Slammed into YB-OM8(R). 00714_ Destabilizing: System interference. 00714_ Seismic Detector temporarily disabled. 00717_ Slammed into YB-OM8(R). 00719_ YB-OM8(R) destroyed. 00720_ Acquired 5 matter. 00721_ Slammed into AS-UTQ(R). 00722_ Subatomizers dissect the Sub. Optics. 00722_ Slammed into AS-UTQ(R). 00723_ AS-UTQ(R) affixes Scrap Shield Fragment to Scrap Shield. Map ----- +----------------------------------------------------+ | ??????????????? " ??????????????????????????? | | ?????????????# " ??????????????????????????? | | ?????????????# ?????????????????????????? | | ????????????# ?????????????????????????? | | ????????????# ?????????????????????????? | | ?????????????# ?????????????????????????? | | ?????????????# ?????????????????????????? | | ??????????????? ??????????????????????#### | | ????????????????# ?????????????????????## | | ?????????????#### #????????????????????# | | ????????????## #????????????????????# | | ????????????# ####??????????????#### | | ????????????# ##????????????## ##?# | | ????????????# ## ####?????????# ### | | ????????????????????## ###??????## # | | ????????????????????# ##????## | | ????????????????????# #?#### | | ???????????????????## ### # | | ??????????????????## # ## ## ## | | ??????????????????# ##### #? | | ??????????????????# ## %##??# #? | | ??????????????????# ## %&&##?# ### ##? | | ??????????????????##?## !%*#?## ######## ##?? | | ????????????????????## !R#??####???# ##??? | | ????????????????????# #?????????# ##???? | | ????????????????????## @ #?????????# ##????? | | ?????????????????????## #?????????# #?????? | | ??????????????????????### #?????????## ####?????? | | ????????????????????????####??????????##?????????? | | ?????????????????????????????????????????????????? | | ?????????????????????????????????????????????????? | | ?????????????????????????????????????????????????? | | ?????????????????????????????????????????????????? | | ?????????????????????????????????????????????????? | | ?????????????????????????????????????????????????? | | ?????????????????????????????????????????????????? | | ?????????????????????????????????????????????????? | | ?????????????????????????????????????????????????? | | ?????????????????????????????????????????????????? | | ?????????????????????????????????????????????????? | | ?????????????????????????????????????????????????? | | ?????????????????????????????????????????????????? | | ?????????????????????????????????????????????????? | | | | | | | | | | | | | | | +----------------------------------------------------+ Best States ------------- Heat Dissipation 25 Energy Generation 10 Energy Capacity 250 Matter Stores 300 Matter Capacity 300 Sight Range 16 Terrain Scan Density 10 Evasion (%) 55 Item Schematics ----------------- None Robot Schematics ------------------ None Fabricated ------------ Nothing Repaired ---------- Nothing Alien Tech Used ----------------- None Achievements -------------- None Challenges ------------ None Game ------ Seed RagnarokTerrabombBlaster Manual? 0 Play Time 00:04:51 Cumulative 38.3 hours Start 2025.05.22 @ 19:43:42 End 2025.05.22 @ 19:48:47 Sessions 1 Manual Loads 0 Difficulty Rogue Special Mode None Game No. 52 Rogue 52 Adventurer 0 Explorer 0 Win Type - Total 0 Types 0/0/0/0/0/0/0/0/0/0 Lore% 41 Gallery% 26 Achievement% 28 Wizard Run 0 Options --------- Layout 0 ASCII 0 Keyboard 1 Movement Vi Keybinds 0 Fullscreen 1 Font 18/SmallcapsGlow Map View 76x50 Zoom Use 0% Tactical HUD 1 Map Filters NONE Filters NONE Steam 1 RUN: c205f902-e766-4baa-bc89-5d162fbbc6cc